Workbook

Sheet Sheet1
A1: No. | B1: item | C1: description | D1: status | E1: group1 | F1: category | G1: list_price | H1: avg_price | I1: avg_cost | J1: pur_price | K1: vendor | L1: 売上4月 | M1: 売上5月 | N1: 売上6月 | O1: 売上7月 | P1: 売上8月 | Q1: 売上9月 | R1: 売上10月 | S1: 売上11月 | T1: 売上12月 | U1: 売上1月 | V1: 売上2月 | W1: 売上3月 | X1: total
A2: 1 | B2: A02589-2 | C2: 商品名 60343450 | D2: 定番 | E2: 3400Y | F2: A10 | G2: 3100 | H2: 3100 | I2: 2511 | J2: 2460 | K2: V2500 | L2: 0 | M2: 124 | N2: 38 | O2: 0 | P2: 83 | Q2: 40 | R2: 98 | S2: 71 | T2: 36 | U2: 69 | V2: 121 | W2: 125 | X2: =SUM(L2:W2) -> 805
A3: 2 | B3: A03372-1 | C3: 商品名 61289616 | D3: 特注 | E3: 2800M | F3: B50 | G3: 9200 | H3: 8832 | I3: 7636 | J3: 7480 | K3: V0900 | L3: 102 | M3: 54 | N3: 124 | O3: 80 | P3: 105 | Q3: 70 | R3: 123 | S3: 128 | T3: 72 | U3: 126 | V3: 0 | W3: 76 | X3: 1060
A4: 3 | B4: A03968-9 | C4: 商品名 55039666 | D4: 定番 | E4: 0300S | F4: B40 | G4: 7900 | H4: 7505 | I4: 5293 | J4: 5190 | K4: V2300 | L4: 0 | M4: 84 | N4: 46 | O4: 52 | P4: 58 | Q4: 48 | R4: 56 | S4: 39 | T4: 59 | U4: 37 | V4: 33 | W4: 11 | X4: 523
A5: 4 | B5: A10826-1 | C5: 商品名 85919210 | D5: 定番 | E5: 9100R | F5: A30 | G5: 30100 | H5: 25886 | I5: 22876 | J5: 22420 | K5: V0300 | L5: 10 | M5: 7 | N5: 10 | O5: 8 | P5: 8 | Q5: 8 | R5: 9 | S5: 7 | T5: 5 | U5: 9 | V5: 6 | W5: 6 | X5: 93
A6: 5 | B6: A14568-7 | C6: 商品名 30082702 | D6: 定番 | E6: 0800Q | F6: B50 | G6: 6800 | H6: 6188 | I6: 5712 | J6: 5600 | K6: V1300 | L6: 239 | M6: 44 | N6: 250 | O6: 262 | P6: 69 | Q6: 155 | R6: 195 | S6: 0 | T6: 109 | U6: 83 | V6: 383 | W6: 272 | X6: 2061
A7: 6 | B7: A16587-9 | C7: 商品名 82814937 | D7: 定番 | E7: 8100M | F7: B30 | G7: 4200 | H7: 3570 | I7: 2646 | J7: 2590 | K7: V0300 | L7: 369 | M7: 402 | N7: 308 | O7: 274 | P7: 488 | Q7: 489 | R7: 381 | S7: 411 | T7: 496 | U7: 400 | V7: 617 | W7: 524 | X7: 5159
A8: 7 | B8: A17344-3 | C8: 商品名 01784665 | D8: 定番 | E8: 7800E | F8: A20 | G8: 37700 | H8: 35815 | I8: 27521 | J8: 26970 | K8: V2600 | L8: 2 | M8: 3 | N8: 1 | O8: 2 | P8: 3 | Q8: 2 | R8: 2 | S8: 3 | T8: 3 | U8: 5 | V8: 4 | W8: 3 | X8: 33
A9: 8 | B9: A19657-0 | C9: 商品名 94422048 | D9: 定番 | E9: 4200S | F9: B60 | G9: 16100 | H9: 14651 | I9: 12558 | J9: 12310 | K9: V0700 | L9: 0 | M9: 7 | N9: 18 | O9: 10 | P9: 24 | Q9: 0 | R9: 5 | S9: 17 | T9: 3 | U9: 19 | V9: 13 | W9: 19 | X9: 135
A10: 9 | B10: A21478-3 | C10: 商品名 19128311 | D10: 特注 | E10: 1200L | F10: B40 | G10: 9900 | H10: 9207 | I10: 6831 | J10: 6690 | K10: V0000 | L10: 149 | M10: 166 | N10: 151 | O10: 182 | P10: 162 | Q10: 97 | R10: 143 | S10: 152 | T10: 133 | U10: 135 | V10: 129 | W10: 133 | X10: 1732
A11: 10 | B11: A24293-1 | C11: 商品名 51850104 | D11: 特注 | E11: 8500N | F11: A10 | G11: 7800 | H11: 6708 | I11: 5928 | J11: 5810 | K11: V2100 | L11: 26 | M11: 22 | N11: 8 | O11: 0 | P11: 14 | Q11: 12 | R11: 7 | S11: 15 | T11: 11 | U11: 29 | V11: 17 | W11: 10 | X11: 171
A12: 11 | B12: A25420-3 | C12: 商品名 24060923 | D12: 定番 | E12: 0600U | F12: A10 | G12: 3300 | H12: 2937 | I12: 1947 | J12: 1910 | K12: V1800 | L12: 6 | M12: 0 | N12: 0 | O12: 243 | P12: 205 | Q12: 110 | R12: 165 | S12: 0 | T12: 338 | U12: 35 | V12: 64 | W12: 118 | X12: 1284
A13: 12 | B13: A25621-3 | C13: 商品名 89103082 | D13: 定番 | E13: 1000Y | F13: B60 | G13: 800 | H13: 792 | I13: 648 | J13: 640 | K13: V0900 | L13: 14 | M13: 39 | N13: 31 | O13: 12 | P13: 24 | Q13: 33 | R13: 7 | S13: 20 | T13: 25 | U13: 21 | V13: 22 | W13: 9 | X13: 257
A14: 13 | B14: A26301-7 | C14: 商品名 32776032 | D14: 定番 | E14: 7700G | F14: B10 | G14: 4200 | H14: 3948 | I14: 2562 | J14: 2510 | K14: V0300 | L14: 53 | M14: 63 | N14: 98 | O14: 86 | P14: 82 | Q14: 70 | R14: 139 | S14: 116 | T14: 119 | U14: 55 | V14: 72 | W14: 122 | X14: 1075
A15: 14 | B15: A27663-1 | C15: 商品名 87645017 | D15: 定番 | E15: 6400L | F15: B50 | G15: 600 | H15: 558 | I15: 378 | J15: 370 | K15: V0500 | L15: 356 | M15: 390 | N15: 383 | O15: 243 | P15: 381 | Q15: 321 | R15: 185 | S15: 387 | T15: 213 | U15: 420 | V15: 220 | W15: 332 | X15: 3831
A16: 15 | B16: A27711-0 | C16: 商品名 81120713 | D16: 定番 | E16: 1200Y | F16: A30 | G16: 500 | H16: 490 | I16: 380 | J16: 370 | K16: V2300 | L16: 723 | M16: 245 | N16: 168 | O16: 244 | P16: 482 | Q16: 88 | R16: 386 | S16: 931 | T16: 265 | U16: 0 | V16: 364 | W16: 297 | X16: 4193
A17: 16 | B17: A29897-4 | C17: 商品名 86006629 | D17: 特注 | E17: 0000X | F17: A20 | G17: 6400 | H17: 5440 | I17: 3648 | J17: 3580 | K17: V2900 | L17: 48 | M17: 48 | N17: 66 | O17: 61 | P17: 40 | Q17: 55 | R17: 63 | S17: 50 | T17: 38 | U17: 68 | V17: 33 | W17: 55 | X17: 625
A18: 17 | B18: A34899-2 | C18: 商品名 15111278 | D18: 定番 | E18: 1100T | F18: A40 | G18: 2100 | H18: 2079 | I18: 1701 | J18: 1670 | K18: V2800 | L18: 127 | M18: 5 | N18: 18 | O18: 182 | P18: 43 | Q18: 89 | R18: 102 | S18: 215 | T18: 180 | U18: 20 | V18: 118 | W18: 204 | X18: 1303
A19: 18 | B19: A34986-4 | C19: 商品名 65803479 | D19: 定番 | E19: 8000K | F19: A30 | G19: 1000 | H19: 970 | I19: 830 | J19: 810 | K19: V0300 | L19: 252 | M19: 395 | N19: 227 | O19: 41 | P19: 1176 | Q19: 706 | R19: 0 | S19: 836 | T19: 388 | U19: 742 | V19: 0 | W19: 441 | X19: 5204
A20: 19 | B20: A39502-9 | C20: 商品名 92783525 | D20: 特注 | E20: 7800G | F20: A30 | G20: 400 | H20: 376 | I20: 256 | J20: 250 | K20: V0600 | L20: 0 | M20: 1686 | N20: 3151 | O20: 443 | P20: 455 | Q20: 742 | R20: 0 | S20: 1276 | T20: 2413 | U20: 1659 | V20: 2301 | W20: 1523 | X20: 15649
A21: 20 | B21: A40057-3 | C21: 商品名 12112362 | D21: 定番 | E21: 1100W | F21: A30 | G21: 500 | H21: 430 | I21: 380 | J21: 370 | K21: V0200 | L21: 51 | M21: 54 | N21: 50 | O21: 58 | P21: 93 | Q21: 57 | R21: 69 | S21: 74 | T21: 66 | U21: 68 | V21: 68 | W21: 83 | X21: 791
A22: 21 | B22: A43297-6 | C22: 商品名 20478280 | D22: 定番 | E22: 4700E | F22: A40 | G22: 50900 | H22: 44792 | I22: 34612 | J22: 33920 | K22: V1300 | L22: 7 | M22: 7 | N22: 8 | O22: 7 | P22: 8 | Q22: 7 | R22: 7 | S22: 7 | T22: 7 | U22: 7 | V22: 7 | W22: 7 | X22: 86
A23: 22 | B23: A44498-3 | C23: 商品名 31115733 | D23: 定番 | E23: 1100C | F23: B20 | G23: 59400 | H23: 52866 | I23: 44550 | J23: 43660 | K23: V3000 | L23: 6 | M23: 5 | N23: 7 | O23: 10 | P23: 10 | Q23: 8 | R23: 12 | S23: 8 | T23: 0 | U23: 9 | V23: 11 | W23: 7 | X23: 93
A24: 23 | B24: A49032-7 | C24: 商品名 88084393 | D24: 定番 | E24: 0800H | F24: B50 | G24: 800 | H24: 680 | I24: 616 | J24: 600 | K24: V0900 | L24: 125 | M24: 50 | N24: 82 | O24: 105 | P24: 74 | Q24: 105 | R24: 59 | S24: 51 | T24: 60 | U24: 115 | V24: 119 | W24: 123 | X24: 1068
A25: 24 | B25: A56813-1 | C25: 商品名 20377337 | D25: 特注 | E25: 3700H | F25: B40 | G25: 900 | H25: 882 | I25: 729 | J25: 710 | K25: V1500 | L25: 402 | M25: 57 | N25: 0 | O25: 262 | P25: 429 | Q25: 222 | R25: 221 | S25: 264 | T25: 116 | U25: 425 | V25: 312 | W25: 70 | X25: 2780
A26: 25 | B26: A58703-3 | C26: 商品名 78275308 | D26: 特注 | E26: 2700Y | F26: B10 | G26: 56200 | H26: 56200 | I26: 42712 | J26: 41860 | K26: V1200 | L26: 9 | M26: 12 | N26: 7 | O26: 22 | P26: 12 | Q26: 12 | R26: 0 | S26: 9 | T26: 7 | U26: 4 | V26: 10 | W26: 7 | X26: 111
A27: 26 | B27: A65397-5 | C27: 商品名 20291632 | D27: 定番 | E27: 2900A | F27: A60 | G27: 28200 | H27: 27918 | I27: 19458 | J27: 19070 | K27: V2400 | L27: 0 | M27: 0 | N27: 0 | O27: 0 | P27: 0 | Q27: 0 | R27: 0 | S27: 0 | T27: 0 | U27: 0 | V27: 0 | W27: 0 | X27: 0
A28: 27 | B28: A66708-2 | C28: 商品名 82378864 | D28: 特注 | E28: 3700H | F28: A60 | G28: 500 | H28: 440 | I28: 365 | J28: 360 | K28: V1600 | L28: 21 | M28: 19 | N28: 19 | O28: 29 | P28: 23 | Q28: 19 | R28: 24 | S28: 25 | T28: 26 | U28: 27 | V28: 26 | W28: 25 | X28: 283
A29: 28 | B29: A75305-6 | C29: 商品名 76368550 | D29: 定番 | E29: 3600T | F29: A40 | G29: 1000 | H29: 870 | I29: 740 | J29: 730 | K29: V0500 | L29: 40 | M29: 27 | N29: 62 | O29: 56 | P29: 64 | Q29: 24 | R29: 10 | S29: 23 | T29: 59 | U29: 70 | V29: 54 | W29: 84 | X29: 573
A30: 29 | B30: A83082-1 | C30: 商品名 09301051 | D30: 定番 | E30: 3000C | F30: A20 | G30: 100 | H30: 95 | I30: 59 | J30: 60 | K30: V1300 | L30: 245 | M30: 0 | N30: 125 | O30: 242 | P30: 43 | Q30: 110 | R30: 449 | S30: 364 | T30: 29 | U30: 38 | V30: 210 | W30: 125 | X30: 1980
A31: 30 | B31: A87127-5 | C31: 商品名 18602949 | D31: 特注 | E31: 6000R | F31: A60 | G31: 4800 | H31: 4704 | I31: 3984 | J31: 3900 | K31: V2700 | L31: 26 | M31: 0 | N31: 288 | O31: 77 | P31: 199 | Q31: 99 | R31: 30 | S31: 144 | T31: 141 | U31: 51 | V31: 132 | W31: 143 | X31: 1330
A32: 31 | B32: A88803-8 | C32: 商品名 69866570 | D32: 廃番 | E32: 8600F | F32: A60 | G32: 11000 | H32: 9680 | I32: 8910 | J32: 8730 | K32: V2600 | L32: 4 | M32: 5 | N32: 3 | O32: 3 | P32: 4 | Q32: 2 | R32: 7 | S32: 4 | T32: 3 | U32: 9 | V32: 4 | W32: 3 | X32: 51
A33: 32 | B33: A90464-5 | C33: 商品名 24916832 | D33: 定番 | E33: 9100Y | F33: A10 | G33: 10100 | H33: 9797 | I33: 6666 | J33: 6530 | K33: V0100 | L33: 2 | M33: 3 | N33: 2 | O33: 3 | P33: 3 | Q33: 2 | R33: 3 | S33: 2 | T33: 3 | U33: 2 | V33: 2 | W33: 2 | X33: 29
A34: 33 | B34: A93611-1 | C34: 商品名 12056447 | D34: 定番 | E34: 0500B | F34: A50 | G34: 51000 | H34: 43860 | I34: 40800 | J34: 39980 | K34: V0400 | L34: 1 | M34: 6 | N34: 2 | O34: 0 | P34: 2 | Q34: 1 | R34: 0 | S34: 0 | T34: 1 | U34: 2 | V34: 2 | W34: 3 | X34: 20
A35: 34 | B35: A96399-4 | C35: 商品名 70124457 | D35: 特注 | E35: 1200Q | F35: B20 | G35: 43600 | H35: 40984 | I35: 26596 | J35: 26060 | K35: V1000 | L35: 5 | M35: 10 | N35: 16 | O35: 12 | P35: 4 | Q35: 13 | R35: 5 | S35: 5 | T35: 10 | U35: 2 | V35: 0 | W35: 16 | X35: 98
A36: 35 | B36: A98618-7 | C36: 商品名 31529632 | D36: 定番 | E36: 5200W | F36: A50 | G36: 500 | H36: 450 | I36: 345 | J36: 340 | K36: V1300 | L36: 244 | M36: 266 | N36: 146 | O36: 328 | P36: 68 | Q36: 381 | R36: 383 | S36: 311 | T36: 170 | U36: 234 | V36: 285 | W36: 226 | X36: 3042
A37: 36 | B37: B00531-5 | C37: 商品名 63170585 | D37: 定番 | E37: 1700S | F37: A30 | G37: 300 | H37: 276 | I37: 168 | J37: 160 | K37: V3000 | L37: 83 | M37: 88 | N37: 85 | O37: 84 | P37: 85 | Q37: 75 | R37: 76 | S37: 82 | T37: 79 | U37: 81 | V37: 83 | W37: 85 | X37: 986
A38: 37 | B38: B05565-6 | C38: 商品名 82549239 | D38: 定番 | E38: 5400D | F38: B40 | G38: 1200 | H38: 1020 | I38: 852 | J38: 830 | K38: V0100 | L38: 146 | M38: 131 | N38: 159 | O38: 135 | P38: 152 | Q38: 132 | R38: 158 | S38: 166 | T38: 185 | U38: 166 | V38: 175 | W38: 156 | X38: 1861
A39: 38 | B39: B07633-2 | C39: 商品名 36299651 | D39: 定番 | E39: 2900Y | F39: B10 | G39: 57800 | H39: 49130 | I39: 43350 | J39: 42480 | K39: V0200 | L39: 3 | M39: 0 | N39: 1 | O39: 2 | P39: 0 | Q39: 2 | R39: 3 | S39: 2 | T39: 2 | U39: 1 | V39: 1 | W39: 3 | X39: 20
A40: 39 | B40: B14610-6 | C40: 商品名 08741695 | D40: 定番 | E40: 7400X | F40: A40 | G40: 600 | H40: 576 | I40: 396 | J40: 390 | K40: V2300 | L40: 68 | M40: 64 | N40: 62 | O40: 19 | P40: 84 | Q40: 0 | R40: 100 | S40: 109 | T40: 49 | U40: 93 | V40: 20 | W40: 66 | X40: 734
A41: 40 | B41: B14711-7 | C41: 商品名 10211724 | D41: 定番 | E41: 2100C | F41: A60 | G41: 8000 | H41: 8000 | I41: 5280 | J41: 5170 | K41: V1900 | L41: 0 | M41: 21 | N41: 2 | O41: 29 | P41: 26 | Q41: 33 | R41: 7 | S41: 29 | T41: 23 | U41: 6 | V41: 36 | W41: 3 | X41: 215
A42: 41 | B42: B29101-6 | C42: 商品名 88136580 | D42: 定番 | E42: 1300I | F42: B50 | G42: 1600 | H42: 1552 | I42: 1120 | J42: 1100 | K42: V0600 | L42: 145 | M42: 19 | N42: 113 | O42: 134 | P42: 0 | Q42: 165 | R42: 246 | S42: 281 | T42: 335 | U42: 47 | V42: 194 | W42: 93 | X42: 1772
A43: 42 | B43: B30293-4 | C43: 商品名 68528408 | D43: 定番 | E43: 5200N | F43: A50 | G43: 100 | H43: 95 | I43: 58 | J43: 60 | K43: V1400 | L43: 37 | M43: 52 | N43: 93 | O43: 19 | P43: 124 | Q43: 15 | R43: 63 | S43: 59 | T43: 75 | U43: 34 | V43: 63 | W43: 0 | X43: 634
A44: 43 | B44: B31339-3 | C44: 商品名 02084868 | D44: 定番 | E44: 0800J | F44: A30 | G44: 56200 | H44: 56200 | I44: 30910 | J44: 30290 | K44: V1400 | L44: 6 | M44: 2 | N44: 14 | O44: 9 | P44: 8 | Q44: 6 | R44: 0 | S44: 6 | T44: 9 | U44: 7 | V44: 6 | W44: 11 | X44: 84
A45: 44 | B45: B33476-1 | C45: 商品名 50636305 | D45: 廃番 | E45: 6300Y | F45: B60 | G45: 300 | H45: 288 | I45: 243 | J45: 240 | K45: V1400 | L45: 0 | M45: 11 | N45: 21 | O45: 0 | P45: 61 | Q45: 31 | R45: 69 | S45: 45 | T45: 67 | U45: 39 | V45: 0 | W45: 30 | X45: 374
A46: 45 | B46: B34986-0 | C46: 商品名 94795860 | D46: 特注 | E46: 7900W | F46: A20 | G46: 1000 | H46: 880 | I46: 660 | J46: 650 | K46: V0700 | L46: 1 | M46: 2 | N46: 9 | O46: 4 | P46: 8 | Q46: 6 | R46: 2 | S46: 3 | T46: 8 | U46: 7 | V46: 4 | W46: 4 | X46: 58
A47: 46 | B47: B46965-6 | C47: 商品名 06924930 | D47: 廃番 | E47: 9200I | F47: B30 | G47: 6700 | H47: 6633 | I47: 5427 | J47: 5320 | K47: V1100 | L47: 312 | M47: 363 | N47: 252 | O47: 217 | P47: 160 | Q47: 241 | R47: 91 | S47: 286 | T47: 211 | U47: 142 | V47: 197 | W47: 321 | X47: 2793
A48: 47 | B48: B57065-1 | C48: 商品名 61125918 | D48: 特注 | E48: 1200B | F48: A10 | G48: 7000 | H48: 6860 | I48: 5180 | J48: 5080 | K48: V1100 | L48: 412 | M48: 492 | N48: 546 | O48: 298 | P48: 786 | Q48: 582 | R48: 415 | S48: 0 | T48: 1204 | U48: 799 | V48: 248 | W48: 132 | X48: 5914
A49: 48 | B49: B57805-9 | C49: 商品名 90115086 | D49: 特注 | E49: 1100R | F49: B20 | G49: 3100 | H49: 3100 | I49: 1736 | J49: 1700 | K49: V0800 | L49: 192 | M49: 115 | N49: 104 | O49: 20 | P49: 73 | Q49: 124 | R49: 129 | S49: 85 | T49: 77 | U49: 15 | V49: 128 | W49: 266 | X49: 1328
A50: 49 | B50: B59210-9 | C50: 商品名 39788096 | D50: 定番 | E50: 7800C | F50: B20 | G50: 200 | H50: 194 | I50: 152 | J50: 150 | K50: V2300 | L50: 99 | M50: 42 | N50: 124 | O50: 58 | P50: 92 | Q50: 117 | R50: 13 | S50: 111 | T50: 23 | U50: 0 | V50: 87 | W50: 46 | X50: 812
A51: 50 | B51: B59772-1 | C51: 商品名 00716187 | D51: 定番 | E51: 7100G | F51: A50 | G51: 700 | H51: 658 | I51: 574 | J51: 560 | K51: V2900 | L51: 626 | M51: 781 | N51: 752 | O51: 641 | P51: 540 | Q51: 692 | R51: 727 | S51: 541 | T51: 861 | U51: 828 | V51: 875 | W51: 784 | X51: 8648
A52: 51 | B52: B66319-2 | C52: 商品名 46703277 | D52: 定番 | E52: 7000U | F52: B50 | G52: 900 | H52: 855 | I52: 675 | J52: 660 | K52: V1300 | L52: 812 | M52: 593 | N52: 1699 | O52: 2425 | P52: 1311 | Q52: 1433 | R52: 687 | S52: 1849 | T52: 468 | U52: 742 | V52: 2292 | W52: 0 | X52: 14311
A53: 52 | B53: B67193-9 | C53: 商品名 55074177 | D53: 特注 | E53: 0700D | F53: B30 | G53: 800 | H53: 792 | I53: 544 | J53: 530 | K53: V0400 | L53: 44 | M53: 56 | N53: 65 | O53: 0 | P53: 80 | Q53: 0 | R53: 50 | S53: 79 | T53: 60 | U53: 31 | V53: 25 | W53: 90 | X53: 580
A54: 53 | B54: B67599-5 | C54: 商品名 00946109 | D54: 定番 | E54: 9400T | F54: A50 | G54: 30100 | H54: 29498 | I54: 19565 | J54: 19170 | K54: V2800 | L54: 3 | M54: 2 | N54: 2 | O54: 4 | P54: 2 | Q54: 4 | R54: 0 | S54: 1 | T54: 4 | U54: 3 | V54: 1 | W54: 0 | X54: 26
A55: 54 | B55: B67827-5 | C55: 商品名 26348709 | D55: 定番 | E55: 3400X | F55: A20 | G55: 800 | H55: 696 | I55: 496 | J55: 490 | K55: V0600 | L55: 71 | M55: 130 | N55: 130 | O55: 27 | P55: 235 | Q55: 224 | R55: 38 | S55: 56 | T55: 229 | U55: 113 | V55: 93 | W55: 98 | X55: 1444
A56: 55 | B56: B74997-2 | C56: 商品名 48296212 | D56: 特注 | E56: 2900T | F56: B60 | G56: 10000 | H56: 10000 | I56: 5800 | J56: 5680 | K56: V0900 | L56: 99 | M56: 8 | N56: 278 | O56: 0 | P56: 264 | Q56: 118 | R56: 343 | S56: 97 | T56: 509 | U56: 0 | V56: 333 | W56: 442 | X56: 2491
A57: 56 | B57: B76659-0 | C57: 商品名 31632723 | D57: 定番 | E57: 6300B | F57: B30 | G57: 40900 | H57: 39264 | I57: 24131 | J57: 23650 | K57: V2100 | L57: 7 | M57: 6 | N57: 5 | O57: 5 | P57: 7 | Q57: 6 | R57: 5 | S57: 4 | T57: 7 | U57: 7 | V57: 5 | W57: 5 | X57: 69
A58: 57 | B58: B76955-3 | C58: 商品名 03730056 | D58: 販促 | E58: 7300Q | F58: B10 | G58: 30100 | H58: 28595 | I58: 23478 | J58: 23010 | K58: V1000 | L58: 9 | M58: 10 | N58: 10 | O58: 11 | P58: 13 | Q58: 12 | R58: 9 | S58: 18 | T58: 12 | U58: 8 | V58: 16 | W58: 13 | X58: 141
A59: 58 | B59: B82163-9 | C59: 商品名 65539618 | D59: 特注 | E59: 5300P | F59: B10 | G59: 57400 | H59: 55104 | I59: 31570 | J59: 30940 | K59: V1200 | L59: 170 | M59: 260 | N59: 70 | O59: 140 | P59: 60 | Q59: 90 | R59: 90 | S59: 110 | T59: 0 | U59: 70 | V59: 10 | W59: 0 | X59: 1070
A60: 59 | B60: B84194-6 | C60: 商品名 25994000 | D60: 定番 | E60: 9900O | F60: B30 | G60: 3800 | H60: 3268 | I60: 2926 | J60: 2870 | K60: V0200 | L60: 253 | M60: 248 | N60: 223 | O60: 238 | P60: 226 | Q60: 245 | R60: 238 | S60: 232 | T60: 237 | U60: 231 | V60: 218 | W60: 243 | X60: 2832
A61: 60 | B61: B88736-8 | C61: 商品名 66626936 | D61: 定番 | E61: 6200N | F61: B20 | G61: 500 | H61: 450 | I61: 405 | J61: 400 | K61: V2600 | L61: 153 | M61: 53 | N61: 10 | O61: 206 | P61: 83 | Q61: 90 | R61: 140 | S61: 148 | T61: 53 | U61: 103 | V61: 35 | W61: 136 | X61: 1210
A62: 61 | B62: B89854-9 | C62: 商品名 16542381 | D62: 定番 | E62: 5400U | F62: B60 | G62: 700 | H62: 658 | I62: 588 | J62: 580 | K62: V2500 | L62: 32 | M62: 233 | N62: 0 | O62: 26 | P62: 246 | Q62: 45 | R62: 419 | S62: 349 | T62: 238 | U62: 0 | V62: 223 | W62: 9 | X62: 1820
A63: 62 | B63: B91377-1 | C63: 商品名 62280286 | D63: 特注 | E63: 2800G | F63: B50 | G63: 1000 | H63: 950 | I63: 560 | J63: 550 | K63: V1000 | L63: 32 | M63: 30 | N63: 16 | O63: 50 | P63: 26 | Q63: 49 | R63: 54 | S63: 34 | T63: 25 | U63: 11 | V63: 54 | W63: 47 | X63: 428
A64: 63 | B64: B98136-9 | C64: 商品名 49649093 | D64: 定番 | E64: 6400G | F64: A60 | G64: 34600 | H64: 30448 | I64: 24912 | J64: 24410 | K64: V0500 | L64: 3 | M64: 0 | N64: 1 | O64: 5 | P64: 3 | Q64: 1 | R64: 3 | S64: 5 | T64: 3 | U64: 3 | V64: 3 | W64: 2 | X64: 32
A65: 64 | B65: C02147-7 | C65: 商品名 92836863 | D65: 定番 | E65: 8300U | F65: B10 | G65: 800 | H65: 752 | I65: 464 | J65: 450 | K65: V1300 | L65: 309 | M65: 321 | N65: 356 | O65: 438 | P65: 298 | Q65: 131 | R65: 218 | S65: 221 | T65: 131 | U65: 134 | V65: 72 | W65: 0 | X65: 2629
A66: 65 | B66: C03085-0 | C66: 商品名 00943604 | D66: 定番 | E66: 9400S | F66: B50 | G66: 20800 | H66: 18304 | I66: 14144 | J66: 13860 | K66: V1000 | L66: 9 | M66: 14 | N66: 5 | O66: 12 | P66: 7 | Q66: 5 | R66: 7 | S66: 18 | T66: 12 | U66: 13 | V66: 10 | W66: 10 | X66: =SUM(L66:W66) -> 122
A67: 66 | B67: C05207-5 | C67: 商品名 12229169 | D67: 定番 | E67: 2200U | F67: B60 | G67: 300 | H67: 264 | I67: 252 | J67: 250 | K67: V2500 | L67: 38 | M67: 44 | N67: 42 | O67: 45 | P67: 40 | Q67: 43 | R67: 46 | S67: 42 | T67: 37 | U67: 37 | V67: 40 | W67: 44 | X67: 498
A68: 67 | B68: C08393-0 | C68: 商品名 03352220 | D68: 定番 | E68: 3500X | F68: A10 | G68: 55500 | H68: 52170 | I68: 36075 | J68: 35350 | K68: V1100 | L68: 11 | M68: 19 | N68: 13 | O68: 13 | P68: 16 | Q68: 25 | R68: 18 | S68: 6 | T68: 18 | U68: 29 | V68: 15 | W68: 12 | X68: 195
A69: 68 | B69: C09115-5 | C69: 商品名 23463561 | D69: 定番 | E69: 4600O | F69: A20 | G69: 900 | H69: 873 | I69: 711 | J69: 700 | K69: V3000 | L69: 43 | M69: 37 | N69: 39 | O69: 34 | P69: 21 | Q69: 26 | R69: 2 | S69: 54 | T69: 5 | U69: 19 | V69: 29 | W69: 4 | X69: 313
A70: 69 | B70: C19661-2 | C70: 商品名 81543458 | D70: 定番 | E70: 5400F | F70: A30 | G70: 700 | H70: 637 | I70: 581 | J70: 570 | K70: V3000 | L70: 88 | M70: 88 | N70: 91 | O70: 92 | P70: 94 | Q70: 92 | R70: 87 | S70: 83 | T70: 83 | U70: 85 | V70: 86 | W70: 86 | X70: 1055
A71: 70 | B71: C30713-4 | C71: 商品名 90247795 | D71: 廃番 | E71: 2400L | F71: A50 | G71: 48600 | H71: 47628 | I71: 40338 | J71: 39530 | K71: V1000 | L71: 2 | M71: 1 | N71: 2 | O71: 1 | P71: 1 | Q71: 2 | R71: 2 | S71: 1 | T71: 2 | U71: 2 | V71: 1 | W71: 1 | X71: 18
A72: 71 | B72: C37529-4 | C72: 商品名 25190135 | D72: 定番 | E72: 1900N | F72: A10 | G72: 900 | H72: 765 | I72: 558 | J72: 550 | K72: V0400 | L72: 121 | M72: 137 | N72: 126 | O72: 125 | P72: 118 | Q72: 127 | R72: 126 | S72: 127 | T72: 133 | U72: 124 | V72: 130 | W72: 124 | X72: 1518
A73: 72 | B73: C37672-6 | C73: 商品名 46204475 | D73: 特注 | E73: 2000L | F73: B10 | G73: 3400 | H73: 3264 | I73: 2380 | J73: 2330 | K73: V1400 | L73: 68 | M73: 85 | N73: 59 | O73: 91 | P73: 52 | Q73: 88 | R73: 85 | S73: 76 | T73: 43 | U73: 66 | V73: 66 | W73: 72 | X73: 851
A74: 73 | B74: C37949-8 | C74: 商品名 69348324 | D74: 定番 | E74: 3400C | F74: A60 | G74: 300 | H74: 297 | I74: 225 | J74: 220 | K74: V1800 | L74: 37 | M74: 4 | N74: 42 | O74: 17 | P74: 28 | Q74: 36 | R74: 21 | S74: 18 | T74: 60 | U74: 3 | V74: 20 | W74: 35 | X74: 321
A75: 74 | B75: C38794-8 | C75: 商品名 33965072 | D75: 定番 | E75: 9600G | F75: A30 | G75: 59400 | H75: 55242 | I75: 32670 | J75: 32020 | K75: V0300 | L75: 0 | M75: 8 | N75: 2 | O75: 7 | P75: 22 | Q75: 0 | R75: 8 | S75: 0 | T75: 5 | U75: 0 | V75: 5 | W75: 10 | X75: 67
A76: 75 | B76: C39034-6 | C76: 商品名 06220932 | D76: 定番 | E76: 2200C | F76: A40 | G76: 1900 | H76: 1843 | I76: 1235 | J76: 1210 | K76: V1200 | L76: 22 | M76: 43 | N76: 38 | O76: 41 | P76: 17 | Q76: 31 | R76: 31 | S76: 24 | T76: 44 | U76: 32 | V76: 37 | W76: 37 | X76: 397
A77: 76 | B77: C58792-4 | C77: 商品名 53385286 | D77: 廃番 | E77: 3800H | F77: A50 | G77: 24900 | H77: 22908 | I77: 19422 | J77: 19030 | K77: V2300 | L77: 18 | M77: 7 | N77: 10 | O77: 16 | P77: 10 | Q77: 10 | R77: 9 | S77: 16 | T77: 18 | U77: 12 | V77: 0 | W77: 13 | X77: 139
A78: 77 | B78: C63645-7 | C78: 商品名 30958000 | D78: 定番 | E78: 9500X | F78: A20 | G78: 8300 | H78: 7553 | I78: 4565 | J78: 4470 | K78: V0000 | L78: 79 | M78: 118 | N78: 68 | O78: 85 | P78: 71 | Q78: 93 | R78: 76 | S78: 66 | T78: 59 | U78: 55 | V78: 84 | W78: 66 | X78: 920
A79: 78 | B79: C64274-4 | C79: 商品名 46602202 | D79: 定番 | E79: 6000M | F79: A40 | G79: 500 | H79: 490 | I79: 330 | J79: 320 | K79: V2200 | L79: 80 | M79: 47 | N79: 132 | O79: 19 | P79: 42 | Q79: 83 | R79: 0 | S79: 34 | T79: 25 | U79: 101 | V79: 0 | W79: 59 | X79: 622
A80: 79 | B80: C64748-9 | C80: 商品名 20542194 | D80: 定番 | E80: 5400D | F80: A20 | G80: 46100 | H80: 41029 | I80: 29043 | J80: 28460 | K80: V0400 | L80: 1 | M80: 1 | N80: 1 | O80: 0 | P80: 1 | Q80: 1 | R80: 1 | S80: 1 | T80: 1 | U80: 0 | V80: 1 | W80: 0 | X80: 9
A81: 80 | B81: C71762-5 | C81: 商品名 72829137 | D81: 定番 | E81: 8200G | F81: B30 | G81: 800 | H81: 768 | I81: 440 | J81: 430 | K81: V1500 | L81: 35 | M81: 33 | N81: 0 | O81: 2 | P81: 0 | Q81: 1 | R81: 30 | S81: 0 | T81: 24 | U81: 13 | V81: 35 | W81: 57 | X81: 230
A82: 81 | B82: C71839-3 | C82: 商品名 44015012 | D82: 定番 | E82: 0100K | F82: A50 | G82: 800 | H82: 696 | I82: 512 | J82: 500 | K82: V2200 | L82: 44 | M82: 43 | N82: 44 | O82: 44 | P82: 44 | Q82: 43 | R82: 43 | S82: 43 | T82: 43 | U82: 43 | V82: 43 | W82: 44 | X82: 521
A83: 82 | B83: C73277-0 | C83: 商品名 30711788 | D83: 定番 | E83: 7100O | F83: A60 | G83: 40400 | H83: 34744 | I83: 26664 | J83: 26130 | K83: V2800 | L83: 6 | M83: 6 | N83: 6 | O83: 6 | P83: 6 | Q83: 6 | R83: 6 | S83: 6 | T83: 6 | U83: 7 | V83: 7 | W83: 6 | X83: 74
A84: 83 | B84: C78111-5 | C84: 商品名 02756650 | D84: 定番 | E84: 7500F | F84: A40 | G84: 900 | H84: 774 | I84: 639 | J84: 630 | K84: V2300 | L84: 45 | M84: 38 | N84: 42 | O84: 39 | P84: 59 | Q84: 65 | R84: 55 | S84: 47 | T84: 52 | U84: 49 | V84: 56 | W84: 44 | X84: 591
A85: 84 | B85: C81834-6 | C85: 商品名 54866216 | D85: 販促 | E85: 8600U | F85: A50 | G85: 7400 | H85: 6660 | I85: 5106 | J85: 5000 | K85: V1900 | L85: 19 | M85: 22 | N85: 14 | O85: 5 | P85: 28 | Q85: 28 | R85: 6 | S85: 17 | T85: 19 | U85: 8 | V85: 21 | W85: 6 | X85: 193
A86: 85 | B86: C83781-7 | C86: 商品名 97313447 | D86: 特注 | E86: 3100R | F86: B60 | G86: 300 | H86: 297 | I86: 189 | J86: 190 | K86: V2000 | L86: 99 | M86: 132 | N86: 188 | O86: 123 | P86: 103 | Q86: 120 | R86: 170 | S86: 79 | T86: 157 | U86: 106 | V86: 139 | W86: 131 | X86: 1547
A87: 86 | B87: C91236-9 | C87: 商品名 40864753 | D87: 定番 | E87: 8600K | F87: B60 | G87: 50700 | H87: 43602 | I87: 38532 | J87: 37760 | K87: V2300 | L87: 9 | M87: 9 | N87: 9 | O87: 9 | P87: 6 | Q87: 11 | R87: 6 | S87: 10 | T87: 11 | U87: 10 | V87: 10 | W87: 12 | X87: 112
A88: 87 | B88: C92125-5 | C88: 商品名 72748492 | D88: 定番 | E88: 7400R | F88: B20 | G88: 10900 | H88: 9701 | I88: 8393 | J88: 8230 | K88: V0900 | L88: 6 | M88: 4 | N88: 10 | O88: 8 | P88: 9 | Q88: 5 | R88: 0 | S88: 10 | T88: 2 | U88: 0 | V88: 11 | W88: 17 | X88: 82
A89: 88 | B89: C92190-6 | C89: 商品名 88877825 | D89: 定番 | E89: 8700E | F89: A20 | G89: 4200 | H89: 4116 | I89: 2856 | J89: 2800 | K89: V2400 | L89: 65 | M89: 38 | N89: 17 | O89: 48 | P89: 89 | Q89: 81 | R89: 114 | S89: 85 | T89: 74 | U89: 72 | V89: 130 | W89: 166 | X89: 979
A90: 89 | B90: C94863-7 | C90: 商品名 14429942 | D90: 定番 | E90: 4200H | F90: B30 | G90: 700 | H90: 651 | I90: 574 | J90: 560 | K90: V0500 | L90: 62 | M90: 59 | N90: 67 | O90: 71 | P90: 79 | Q90: 56 | R90: 35 | S90: 86 | T90: 49 | U90: 83 | V90: 67 | W90: 49 | X90: 763
A91: 90 | B91: D07045-6 | C91: 商品名 21191843 | D91: 定番 | E91: 1900F | F91: A20 | G91: 800 | H91: 736 | I91: 632 | J91: 620 | K91: V1400 | L91: 75 | M91: 90 | N91: 69 | O91: 67 | P91: 65 | Q91: 74 | R91: 54 | S91: 70 | T91: 90 | U91: 69 | V91: 94 | W91: 91 | X91: 908
A92: 91 | B92: D09688-6 | C92: 商品名 06747256 | D92: 定番 | E92: 7400I | F92: A10 | G92: 6700 | H92: 6566 | I92: 4958 | J92: 4860 | K92: V1500 | L92: 94 | M92: 44 | N92: 86 | O92: 0 | P92: 83 | Q92: 19 | R92: 41 | S92: 74 | T92: 54 | U92: 46 | V92: 38 | W92: 33 | X92: 612
A93: 92 | B93: D12159-8 | C93: 商品名 89353875 | D93: 販促 | E93: 3500O | F93: A30 | G93: 11000 | H93: 9350 | I93: 6380 | J93: 6250 | K93: V2400 | L93: 8 | M93: 7 | N93: 7 | O93: 7 | P93: 7 | Q93: 8 | R93: 8 | S93: 7 | T93: 7 | U93: 7 | V93: 8 | W93: 7 | X93: 88
A94: 93 | B94: D13089-7 | C94: 商品名 19256915 | D94: 特注 | E94: 2500T | F94: A60 | G94: 100 | H94: 94 | I94: 73 | J94: 70 | K94: V0500 | L94: 113 | M94: 7 | N94: 92 | O94: 35 | P94: 168 | Q94: 166 | R94: 113 | S94: 143 | T94: 0 | U94: 266 | V94: 39 | W94: 24 | X94: 1166
A95: 94 | B95: D19406-9 | C95: 商品名 79825577 | D95: 定番 | E95: 8200V | F95: A30 | G95: 5200 | H95: 4524 | I95: 4056 | J95: 3970 | K95: V3000 | L95: 133 | M95: 315 | N95: 259 | O95: 336 | P95: 474 | Q95: 244 | R95: 220 | S95: 108 | T95: 158 | U95: 105 | V95: 368 | W95: 0 | X95: 2720
A96: 95 | B96: D28536-8 | C96: 商品名 03795509 | D96: 特注 | E96: 7900E | F96: B60 | G96: 700 | H96: 623 | I96: 497 | J96: 490 | K96: V0700 | L96: 25 | M96: 36 | N96: 29 | O96: 0 | P96: 0 | Q96: 45 | R96: 0 | S96: 84 | T96: 24 | U96: 18 | V96: 27 | W96: 44 | X96: 332
A97: 96 | B97: D37038-0 | C97: 商品名 07622938 | D97: 定番 | E97: 6200H | F97: B30 | G97: 58100 | H97: 51709 | I97: 35441 | J97: 34730 | K97: V1600 | L97: 11 | M97: 10 | N97: 1 | O97: 9 | P97: 10 | Q97: 2 | R97: 7 | S97: 10 | T97: 3 | U97: 0 | V97: 5 | W97: 6 | X97: 74
A98: 97 | B98: D43708-3 | C98: 商品名 62248136 | D98: 定番 | E98: 2400N | F98: B10 | G98: 48000 | H98: 43680 | I98: 34560 | J98: 33870 | K98: V1400 | L98: 7 | M98: 5 | N98: 7 | O98: 11 | P98: 5 | Q98: 8 | R98: 13 | S98: 9 | T98: 10 | U98: 2 | V98: 14 | W98: 7 | X98: 98
A99: 98 | B99: D45380-5 | C99: 商品名 74664966 | D99: 定番 | E99: 6600B | F99: B30 | G99: 4600 | H99: 4324 | I99: 3174 | J99: 3110 | K99: V2600 | L99: 468 | M99: 0 | N99: 0 | O99: 36 | P99: 378 | Q99: 0 | R99: 555 | S99: 0 | T99: 301 | U99: 541 | V99: 877 | W99: 833 | X99: 3989
A100: 99 | B100: D45883-6 | C100: 商品名 41485909 | D100: 定番 | E100: 4800Q | F100: B50 | G100: 300 | H100: 288 | I100: 216 | J100: 210 | K100: V0700 | L100: 18 | M100: 18 | N100: 12 | O100: 12 | P100: 16 | Q100: 10 | R100: 18 | S100: 31 | T100: 12 | U100: 21 | V100: 13 | W100: 6 | X100: 187
A101: 100 | B101: D47448-7 | C101: 商品名 05838121 | D101: 定番 | E101: 8300L | F101: B60 | G101: 800 | H101: 704 | I101: 648 | J101: 640 | K101: V0200 | L101: 303 | M101: 219 | N101: 0 | O101: 98 | P101: 101 | Q101: 4 | R101: 190 | S101: 260 | T101: 160 | U101: 0 | V101: 0 | W101: 135 | X101: 1470
A102: 101 | B102: D49099-7 | C102: 商品名 17107429 | D102: 定番 | E102: 1000X | F102: B50 | G102: 600 | H102: 516 | I102: 408 | J102: 400 | K102: V0600 | L102: 33 | M102: 29 | N102: 30 | O102: 18 | P102: 29 | Q102: 37 | R102: 30 | S102: 26 | T102: 40 | U102: 16 | V102: 16 | W102: 15 | X102: 319
A103: 102 | B103: D54796-1 | C103: 商品名 42097007 | D103: 販促 | E103: 0900Q | F103: B10 | G103: 40700 | H103: 34595 | I103: 32560 | J103: 31910 | K103: V0700 | L103: 5 | M103: 7 | N103: 1 | O103: 4 | P103: 8 | Q103: 7 | R103: 6 | S103: 4 | T103: 0 | U103: 4 | V103: 7 | W103: 1 | X103: 54
A104: 103 | B104: D58555-8 | C104: 商品名 01026116 | D104: 定番 | E104: 0200D | F104: A40 | G104: 1600 | H104: 1424 | I104: 1088 | J104: 1070 | K104: V1200 | L104: 149 | M104: 25 | N104: 0 | O104: 138 | P104: 256 | Q104: 170 | R104: 23 | S104: 67 | T104: 205 | U104: 179 | V104: 87 | W104: 0 | X104: 1299
A105: 104 | B105: D61119-0 | C105: 商品名 75704871 | D105: 定番 | E105: 7000Q | F105: A10 | G105: 200 | H105: 188 | I105: 124 | J105: 120 | K105: V1400 | L105: 89 | M105: 82 | N105: 91 | O105: 76 | P105: 88 | Q105: 85 | R105: 91 | S105: 83 | T105: 76 | U105: 82 | V105: 99 | W105: 71 | X105: 1013
A106: 105 | B106: D61769-8 | C106: 商品名 22197041 | D106: 定番 | E106: 1900Q | F106: B20 | G106: 2000 | H106: 1800 | I106: 1700 | J106: 1670 | K106: V0100 | L106: 29 | M106: 39 | N106: 33 | O106: 70 | P106: 69 | Q106: 38 | R106: 43 | S106: 18 | T106: 5 | U106: 52 | V106: 29 | W106: 47 | X106: 472
A107: 106 | B107: D61994-7 | C107: 商品名 56511778 | D107: 定番 | E107: 5100V | F107: A10 | G107: 400 | H107: 356 | I107: 280 | J107: 270 | K107: V1900 | L107: 95 | M107: 103 | N107: 76 | O107: 122 | P107: 96 | Q107: 123 | R107: 70 | S107: 88 | T107: 83 | U107: 92 | V107: 71 | W107: 76 | X107: 1095
A108: 107 | B108: D65560-5 | C108: 商品名 86156371 | D108: 特注 | E108: 1500K | F108: A40 | G108: 40500 | H108: 35640 | I108: 25110 | J108: 24610 | K108: V2300 | L108: 3 | M108: 3 | N108: 6 | O108: 1 | P108: 3 | Q108: 2 | R108: 4 | S108: 3 | T108: 4 | U108: 4 | V108: 3 | W108: 4 | X108: 40
A109: 108 | B109: D67243-1 | C109: 商品名 77794235 | D109: 特注 | E109: 7900O | F109: A20 | G109: 1300 | H109: 1287 | I109: 1027 | J109: 1010 | K109: V2400 | L109: 21 | M109: 127 | N109: 100 | O109: 78 | P109: 58 | Q109: 94 | R109: 66 | S109: 48 | T109: 122 | U109: 49 | V109: 52 | W109: 110 | X109: 925
A110: 109 | B110: D75074-9 | C110: 商品名 73054347 | D110: 特注 | E110: 0500F | F110: B10 | G110: 5800 | H110: 5336 | I110: 4640 | J110: 4550 | K110: V0000 | L110: 155 | M110: 100 | N110: 305 | O110: 261 | P110: 134 | Q110: 219 | R110: 227 | S110: 246 | T110: 93 | U110: 229 | V110: 173 | W110: 35 | X110: 2177
A111: 110 | B111: D75381-2 | C111: 商品名 37655433 | D111: 定番 | E111: 6500X | F111: B30 | G111: 8600 | H111: 8342 | I111: 6106 | J111: 5980 | K111: V1200 | L111: 476 | M111: 606 | N111: 218 | O111: 179 | P111: 201 | Q111: 205 | R111: 605 | S111: 276 | T111: 571 | U111: 442 | V111: 0 | W111: 335 | X111: 4114
A112: 111 | B112: D76995-7 | C112: 商品名 82081243 | D112: 定番 | E112: 0800Y | F112: A40 | G112: 500 | H112: 500 | I112: 300 | J112: 290 | K112: V0600 | L112: 173 | M112: 67 | N112: 67 | O112: 172 | P112: 86 | Q112: 43 | R112: 99 | S112: 10 | T112: 0 | U112: 85 | V112: 120 | W112: 321 | X112: 1243
A113: 112 | B113: D84659-3 | C113: 商品名 26733259 | D113: 特注 | E113: 7300J | F113: B20 | G113: 2400 | H113: 2400 | I113: 1824 | J113: 1790 | K113: V0700 | L113: 76 | M113: 123 | N113: 0 | O113: 159 | P113: 98 | Q113: 111 | R113: 139 | S113: 120 | T113: 0 | U113: 0 | V113: 250 | W113: 196 | X113: 1272
A114: 113 | B114: D88349-8 | C114: 商品名 77743559 | D114: 特注 | E114: 7400L | F114: A20 | G114: 8400 | H114: 7728 | I114: 6636 | J114: 6500 | K114: V2600 | L114: 137 | M114: 168 | N114: 170 | O114: 33 | P114: 134 | Q114: 144 | R114: 53 | S114: 76 | T114: 96 | U114: 177 | V114: 150 | W114: 245 | X114: 1583
A115: 114 | B115: D93825-1 | C115: 商品名 26810481 | D115: 定番 | E115: 8100A | F115: A50 | G115: 4200 | H115: 3612 | I115: 3486 | J115: 3420 | K115: V1200 | L115: 118 | M115: 120 | N115: 117 | O115: 108 | P115: 117 | Q115: 122 | R115: 107 | S115: 106 | T115: 131 | U115: 110 | V115: 135 | W115: 110 | X115: 1401
A116: 115 | B116: D95360-9 | C116: 商品名 41311274 | D116: 定番 | E116: 3100L | F116: A60 | G116: 30400 | H116: 27056 | I116: 19760 | J116: 19360 | K116: V1500 | L116: 4 | M116: 9 | N116: 6 | O116: 5 | P116: 1 | Q116: 4 | R116: 4 | S116: 6 | T116: 3 | U116: 6 | V116: 7 | W116: 8 | X116: 63
A117: 116 | B117: D95799-1 | C117: 商品名 34774974 | D117: 定番 | E117: 7700F | F117: B10 | G117: 20500 | H117: 18450 | I117: 13735 | J117: 13460 | K117: V0900 | L117: 9 | M117: 5 | N117: 0 | O117: 4 | P117: 9 | Q117: 14 | R117: 13 | S117: 3 | T117: 9 | U117: 9 | V117: 6 | W117: 6 | X117: 87
A118: 117 | B118: D99942-8 | C118: 商品名 69228149 | D118: 定番 | E118: 2200N | F118: A60 | G118: 4000 | H118: 3960 | I118: 2600 | J118: 2550 | K118: V0300 | L118: 1404 | M118: 2674 | N118: 2306 | O118: 754 | P118: 1324 | Q118: 3530 | R118: 3742 | S118: 1522 | T118: 490 | U118: 1465 | V118: 267 | W118: 2212 | X118: 21690
A119: 118 | B119: E02021-8 | C119: 商品名 77855230 | D119: 定番 | E119: 8500I | F119: B50 | G119: 800 | H119: 760 | I119: 496 | J119: 490 | K119: V1000 | L119: 65 | M119: 45 | N119: 47 | O119: 0 | P119: 71 | Q119: 63 | R119: 55 | S119: 91 | T119: 30 | U119: 61 | V119: 79 | W119: 68 | X119: 675
A120: 119 | B120: E03605-6 | C120: 商品名 93751302 | D120: 定番 | E120: 7500X | F120: B50 | G120: 800 | H120: 768 | I120: 520 | J120: 510 | K120: V0800 | L120: 67 | M120: 67 | N120: 86 | O120: 103 | P120: 87 | Q120: 70 | R120: 80 | S120: 5 | T120: 62 | U120: 21 | V120: 50 | W120: 45 | X120: 743
A121: 120 | B121: E04299-2 | C121: 商品名 90779906 | D121: 定番 | E121: 7700Q | F121: B10 | G121: 400 | H121: 384 | I121: 328 | J121: 320 | K121: V2300 | L121: 245 | M121: 0 | N121: 322 | O121: 62 | P121: 0 | Q121: 641 | R121: 230 | S121: 266 | T121: 369 | U121: 499 | V121: 498 | W121: 219 | X121: 3351
A122: 121 | B122: E05624-3 | C122: 商品名 69526109 | D122: 定番 | E122: 5200Q | F122: A60 | G122: 200 | H122: 176 | I122: 162 | J122: 160 | K122: V0400 | L122: 20 | M122: 19 | N122: 20 | O122: 21 | P122: 19 | Q122: 17 | R122: 25 | S122: 19 | T122: 14 | U122: 21 | V122: 20 | W122: 15 | X122: 230
A123: 122 | B123: E05917-0 | C123: 商品名 87315589 | D123: 定番 | E123: 3100C | F123: A60 | G123: 34200 | H123: 29412 | I123: 22572 | J123: 22120 | K123: V2500 | L123: 3 | M123: 7 | N123: 0 | O123: 2 | P123: 4 | Q123: 7 | R123: 0 | S123: 6 | T123: 1 | U123: 3 | V123: 10 | W123: 3 | X123: 46
A124: 123 | B124: E23044-4 | C124: 商品名 36465009 | D124: 特注 | E124: 4600H | F124: A60 | G124: 40700 | H124: 40700 | I124: 30525 | J124: 29910 | K124: V0800 | L124: 5 | M124: 8 | N124: 9 | O124: 7 | P124: 9 | Q124: 7 | R124: 8 | S124: 7 | T124: 6 | U124: 7 | V124: 9 | W124: 9 | X124: 91
A125: 124 | B125: E27377-3 | C125: 商品名 29372227 | D125: 定番 | E125: 3700Z | F125: A10 | G125: 600 | H125: 522 | I125: 438 | J125: 430 | K125: V2700 | L125: 196 | M125: 213 | N125: 485 | O125: 302 | P125: 279 | Q125: 321 | R125: 172 | S125: 212 | T125: 330 | U125: 225 | V125: 79 | W125: 315 | X125: 3129
A126: 125 | B126: E36816-3 | C126: 商品名 65046379 | D126: 定番 | E126: 0400N | F126: B20 | G126: 1700 | H126: 1581 | I126: 1411 | J126: 1380 | K126: V1100 | L126: 55 | M126: 136 | N126: 142 | O126: 119 | P126: 122 | Q126: 31 | R126: 30 | S126: 51 | T126: 58 | U126: 111 | V126: 50 | W126: 36 | X126: 941
A127: 126 | B127: E47822-2 | C127: 商品名 02064649 | D127: 定番 | E127: 0600O | F127: B20 | G127: 400 | H127: 340 | I127: 268 | J127: 260 | K127: V0600 | L127: 7 | M127: 13 | N127: 7 | O127: 7 | P127: 14 | Q127: 7 | R127: 6 | S127: 5 | T127: 10 | U127: 8 | V127: 7 | W127: 4 | X127: 95
A128: 127 | B128: E52994-1 | C128: 商品名 36816503 | D128: 定番 | E128: 8100H | F128: B50 | G128: 19800 | H128: 17820 | I128: 15246 | J128: 14940 | K128: V0100 | L128: 18 | M128: 12 | N128: 6 | O128: 22 | P128: 0 | Q128: 14 | R128: 16 | S128: 16 | T128: 23 | U128: 18 | V128: 4 | W128: 4 | X128: 153
A129: 128 | B129: E59295-9 | C129: 商品名 68383906 | D129: 廃番 | E129: 3800H | F129: B30 | G129: 40200 | H129: 35376 | I129: 34170 | J129: 33490 | K129: V1100 | L129: 4 | M129: 16 | N129: 2 | O129: 2 | P129: 5 | Q129: 5 | R129: 5 | S129: 14 | T129: 5 | U129: 10 | V129: 8 | W129: 9 | X129: 85
A130: 129 | B130: E59439-2 | C130: 商品名 18042640 | D130: 定番 | E130: 0400F | F130: A60 | G130: 100 | H130: 93 | I130: 62 | J130: 60 | K130: V0200 | L130: 94 | M130: 97 | N130: 100 | O130: 101 | P130: 97 | Q130: 92 | R130: 95 | S130: 104 | T130: 98 | U130: 87 | V130: 85 | W130: 97 | X130: =SUM(L130:W130) -> 1147
A131: 130 | B131: E59522-5 | C131: 商品名 78943437 | D131: 廃番 | E131: 9400H | F131: B20 | G131: 9000 | H131: 8190 | I131: 5400 | J131: 5290 | K131: V2900 | L131: 32 | M131: 47 | N131: 43 | O131: 7 | P131: 49 | Q131: 15 | R131: 73 | S131: 21 | T131: 38 | U131: 34 | V131: 33 | W131: 56 | X131: 448
A132: 131 | B132: E63431-7 | C132: 商品名 93136780 | D132: 定番 | E132: 1300W | F132: B10 | G132: 800 | H132: 768 | I132: 632 | J132: 620 | K132: V0100 | L132: 38 | M132: 31 | N132: 18 | O132: 49 | P132: 84 | Q132: 19 | R132: 46 | S132: 5 | T132: 46 | U132: 44 | V132: 63 | W132: 29 | X132: 472
A133: 132 | B133: E65409-3 | C133: 商品名 80923853 | D133: 定番 | E133: 9200U | F133: B60 | G133: 100 | H133: 96 | I133: 79 | J133: 80 | K133: V1100 | L133: 667 | M133: 665 | N133: 612 | O133: 608 | P133: 606 | Q133: 640 | R133: 521 | S133: 604 | T133: 636 | U133: 673 | V133: 640 | W133: 554 | X133: 7426
A134: 133 | B134: E68673-9 | C134: 商品名 26407845 | D134: 廃番 | E134: 4000P | F134: A60 | G134: 800 | H134: 720 | I134: 608 | J134: 600 | K134: V0400 | L134: 53 | M134: 159 | N134: 161 | O134: 118 | P134: 175 | Q134: 156 | R134: 66 | S134: 83 | T134: 124 | U134: 146 | V134: 132 | W134: 66 | X134: 1439
A135: 134 | B135: E75956-2 | C135: 商品名 26597048 | D135: 特注 | E135: 5900E | F135: A60 | G135: 20100 | H135: 19296 | I135: 15477 | J135: 15170 | K135: V0600 | L135: 3 | M135: 4 | N135: 4 | O135: 4 | P135: 3 | Q135: 3 | R135: 4 | S135: 3 | T135: 3 | U135: 3 | V135: 3 | W135: 3 | X135: 40
A136: 135 | B136: E76814-3 | C136: 商品名 75807854 | D136: 定番 | E136: 8000O | F136: A30 | G136: 49600 | H136: 45136 | I136: 42160 | J136: 41320 | K136: V1800 | L136: 7 | M136: 12 | N136: 7 | O136: 6 | P136: 7 | Q136: 7 | R136: 10 | S136: 6 | T136: 11 | U136: 9 | V136: 8 | W136: 8 | X136: 98
A137: 136 | B137: E87411-2 | C137: 商品名 48417345 | D137: 特注 | E137: 4100L | F137: B30 | G137: 2400 | H137: 2040 | I137: 2016 | J137: 1980 | K137: V0100 | L137: 123 | M137: 25 | N137: 122 | O137: 141 | P137: 92 | Q137: 138 | R137: 143 | S137: 0 | T137: 135 | U137: 179 | V137: 21 | W137: 81 | X137: 1200
A138: 137 | B138: E90134-1 | C138: 商品名 11675876 | D138: 廃番 | E138: 6700X | F138: A30 | G138: 400 | H138: 388 | I138: 248 | J138: 240 | K138: V1300 | L138: 288 | M138: 46 | N138: 153 | O138: 242 | P138: 773 | Q138: 243 | R138: 562 | S138: 278 | T138: 688 | U138: 102 | V138: 63 | W138: 0 | X138: 3438
A139: 138 | B139: E91315-3 | C139: 商品名 75941531 | D139: 定番 | E139: 9400E | F139: B50 | G139: 18600 | H139: 15810 | I139: 13578 | J139: 13310 | K139: V2600 | L139: 2 | M139: 2 | N139: 2 | O139: 2 | P139: 2 | Q139: 2 | R139: 2 | S139: 2 | T139: 1 | U139: 2 | V139: 2 | W139: 2 | X139: 23
A140: 139 | B140: E91334-7 | C140: 商品名 34465606 | D140: 定番 | E140: 4600W | F140: B20 | G140: 8000 | H140: 7920 | I140: 4640 | J140: 4550 | K140: V2700 | L140: 202 | M140: 168 | N140: 215 | O140: 198 | P140: 179 | Q140: 145 | R140: 127 | S140: 205 | T140: 123 | U140: 203 | V140: 208 | W140: 160 | X140: 2133
A141: 140 | B141: E95041-9 | C141: 商品名 28611004 | D141: 定番 | E141: 6100G | F141: B20 | G141: 800 | H141: 776 | I141: 472 | J141: 460 | K141: V0900 | L141: 1536 | M141: 683 | N141: 1661 | O141: 1319 | P141: 2542 | Q141: 260 | R141: 2666 | S141: 1768 | T141: 811 | U141: 966 | V141: 1143 | W141: 1096 | X141: 16451
A142: 141 | B142: E95717-4 | C142: 商品名 38847794 | D142: 定番 | E142: 8400E | F142: A20 | G142: 40300 | H142: 34658 | I142: 31031 | J142: 30410 | K142: V1400 | L142: 1 | M142: 2 | N142: 0 | O142: 1 | P142: 0 | Q142: 1 | R142: 1 | S142: 0 | T142: 1 | U142: 1 | V142: 1 | W142: 0 | X142: 9
A143: 142 | B143: E95978-8 | C143: 商品名 11977452 | D143: 定番 | E143: 9700J | F143: B20 | G143: 5600 | H143: 5152 | I143: 3416 | J143: 3350 | K143: V1900 | L143: 81 | M143: 107 | N143: 99 | O143: 103 | P143: 116 | Q143: 100 | R143: 92 | S143: 131 | T143: 100 | U143: 75 | V143: 114 | W143: 106 | X143: 1224
A144: 143 | B144: E96295-1 | C144: 商品名 12674180 | D144: 定番 | E144: 6700F | F144: A50 | G144: 8800 | H144: 7744 | I144: 7392 | J144: 7240 | K144: V1300 | L144: 124 | M144: 0 | N144: 95 | O144: 65 | P144: 20 | Q144: 10 | R144: 89 | S144: 89 | T144: 129 | U144: 21 | V144: 45 | W144: 114 | X144: 801
A145: 144 | B145: E97485-1 | C145: 商品名 70498291 | D145: 定番 | E145: 4900X | F145: B50 | G145: 41000 | H145: 36490 | I145: 34440 | J145: 33750 | K145: V1600 | L145: 11 | M145: 90 | N145: 28 | O145: 46 | P145: 7 | Q145: 58 | R145: 55 | S145: 33 | T145: 0 | U145: 104 | V145: 1 | W145: 14 | X145: 447
A146: 145 | B146: E98125-6 | C146: 商品名 15012011 | D146: 廃番 | E146: 0100S | F146: A60 | G146: 400 | H146: 348 | I146: 336 | J146: 330 | K146: V1900 | L146: 11 | M146: 12 | N146: 7 | O146: 16 | P146: 11 | Q146: 7 | R146: 10 | S146: 16 | T146: 5 | U146: 17 | V146: 16 | W146: 8 | X146: 136
A147: 146 | B147: F04326-5 | C147: 商品名 23205464 | D147: 廃番 | E147: 2000Q | F147: B60 | G147: 7200 | H147: 6408 | I147: 4608 | J147: 4520 | K147: V2800 | L147: 52 | M147: 54 | N147: 51 | O147: 52 | P147: 51 | Q147: 51 | R147: 43 | S147: 35 | T147: 28 | U147: 37 | V147: 57 | W147: 67 | X147: 578
A148: 147 | B148: F10023-7 | C148: 商品名 00370810 | D148: 定番 | E148: 3700R | F148: A60 | G148: 8300 | H148: 7470 | I148: 5063 | J148: 4960 | K148: V1500 | L148: 540 | M148: 257 | N148: 288 | O148: 216 | P148: 206 | Q148: 672 | R148: 0 | S148: 429 | T148: 1081 | U148: 876 | V148: 587 | W148: 220 | X148: 5372
A149: 148 | B149: F18455-2 | C149: 商品名 55771675 | D149: 定番 | E149: 7700D | F149: A40 | G149: 30100 | H149: 27692 | I149: 23177 | J149: 22710 | K149: V1300 | L149: 4 | M149: 5 | N149: 5 | O149: 2 | P149: 3 | Q149: 5 | R149: 0 | S149: 6 | T149: 0 | U149: 4 | V149: 6 | W149: 0 | X149: 40
A150: 149 | B150: F24161-1 | C150: 商品名 69098117 | D150: 定番 | E150: 0900I | F150: B30 | G150: 700 | H150: 644 | I150: 490 | J150: 480 | K150: V1100 | L150: 261 | M150: 234 | N150: 177 | O150: 208 | P150: 0 | Q150: 359 | R150: 237 | S150: 203 | T150: 334 | U150: 181 | V150: 166 | W150: 282 | X150: 2642
A151: 150 | B151: F24368-9 | C151: 商品名 47735375 | D151: 特注 | E151: 7300V | F151: B50 | G151: 1100 | H151: 1100 | I151: 902 | J151: 880 | K151: V1600 | L151: 103 | M151: 0 | N151: 12 | O151: 94 | P151: 112 | Q151: 7 | R151: 144 | S151: 86 | T151: 45 | U151: 36 | V151: 69 | W151: 0 | X151: 708
A152: 151 | B152: F26984-4 | C152: 商品名 63603852 | D152: 定番 | E152: 6000Z | F152: B20 | G152: 30800 | H152: 28644 | I152: 24024 | J152: 23540 | K152: V0400 | L152: 5 | M152: 2 | N152: 3 | O152: 0 | P152: 1 | Q152: 1 | R152: 5 | S152: 4 | T152: 0 | U152: 4 | V152: 0 | W152: 4 | X152: 29
A153: 152 | B153: F31453-3 | C153: 商品名 07031062 | D153: 特注 | E153: 0300D | F153: B40 | G153: 31000 | H153: 29450 | I153: 17670 | J153: 17320 | K153: V2400 | L153: 11 | M153: 12 | N153: 11 | O153: 11 | P153: 13 | Q153: 11 | R153: 11 | S153: 12 | T153: 12 | U153: 12 | V153: 12 | W153: 12 | X153: 140
A154: 153 | B154: F32159-4 | C154: 商品名 42590746 | D154: 定番 | E154: 5900V | F154: A30 | G154: 800 | H154: 696 | I154: 488 | J154: 480 | K154: V1200 | L154: 174 | M154: 182 | N154: 173 | O154: 220 | P154: 225 | Q154: 124 | R154: 172 | S154: 148 | T154: 158 | U154: 124 | V154: 184 | W154: 142 | X154: 2026
A155: 154 | B155: F32703-4 | C155: 商品名 05064492 | D155: 特注 | E155: 0600M | F155: B30 | G155: 4300 | H155: 4171 | I155: 2924 | J155: 2870 | K155: V0400 | L155: 336 | M155: 300 | N155: 273 | O155: 323 | P155: 341 | Q155: 324 | R155: 298 | S155: 359 | T155: 375 | U155: 290 | V155: 358 | W155: 357 | X155: 3934
A156: 155 | B156: F33447-1 | C156: 商品名 26759227 | D156: 定番 | E156: 7500L | F156: B10 | G156: 600 | H156: 528 | I156: 438 | J156: 430 | K156: V1000 | L156: 11 | M156: 15 | N156: 19 | O156: 3 | P156: 24 | Q156: 0 | R156: 16 | S156: 10 | T156: 18 | U156: 25 | V156: 0 | W156: 12 | X156: 153
A157: 156 | B157: F41522-6 | C157: 商品名 59903464 | D157: 特注 | E157: 9000N | F157: B50 | G157: 1000 | H157: 910 | I157: 770 | J157: 750 | K157: V1500 | L157: 6 | M157: 7 | N157: 8 | O157: 6 | P157: 7 | Q157: 7 | R157: 7 | S157: 7 | T157: 7 | U157: 8 | V157: 7 | W157: 8 | X157: 85
A158: 157 | B158: F42614-9 | C158: 商品名 34907892 | D158: 販促 | E158: 9000S | F158: B30 | G158: 800 | H158: 760 | I158: 616 | J158: 600 | K158: V1400 | L158: 704 | M158: 611 | N158: 434 | O158: 645 | P158: 420 | Q158: 951 | R158: 357 | S158: 594 | T158: 899 | U158: 527 | V158: 758 | W158: 705 | X158: 7605
A159: 158 | B159: F44835-5 | C159: 商品名 22434938 | D159: 定番 | E159: 4300B | F159: B10 | G159: 1000 | H159: 860 | I159: 790 | J159: 770 | K159: V1300 | L159: 0 | M159: 37 | N159: 21 | O159: 9 | P159: 45 | Q159: 19 | R159: 0 | S159: 47 | T159: 35 | U159: 42 | V159: 19 | W159: 5 | X159: 279
A160: 159 | B160: F46887-2 | C160: 商品名 03740559 | D160: 定番 | E160: 7400L | F160: B30 | G160: 10900 | H160: 9265 | I160: 5995 | J160: 5880 | K160: V2200 | L160: 8 | M160: 5 | N160: 8 | O160: 8 | P160: 10 | Q160: 10 | R160: 4 | S160: 7 | T160: 6 | U160: 6 | V160: 8 | W160: 5 | X160: 85
A161: 160 | B161: F51384-9 | C161: 商品名 65455793 | D161: 定番 | E161: 4500C | F161: B10 | G161: 5400 | H161: 5292 | I161: 4590 | J161: 4500 | K161: V2600 | L161: 140 | M161: 49 | N161: 72 | O161: 121 | P161: 85 | Q161: 83 | R161: 13 | S161: 46 | T161: 19 | U161: 98 | V161: 0 | W161: 133 | X161: 859
A162: 161 | B162: F57500-8 | C162: 商品名 33204852 | D162: 特注 | E162: 2000F | F162: A40 | G162: 600 | H162: 564 | I162: 510 | J162: 500 | K162: V2200 | L162: 398 | M162: 106 | N162: 180 | O162: 50 | P162: 81 | Q162: 64 | R162: 111 | S162: 124 | T162: 134 | U162: 77 | V162: 29 | W162: 222 | X162: 1576
A163: 162 | B163: F58791-9 | C163: 商品名 66309996 | D163: 特注 | E163: 3000D | F163: B20 | G163: 12400 | H163: 10912 | I163: 6820 | J163: 6680 | K163: V0700 | L163: 1 | M163: 2 | N163: 2 | O163: 2 | P163: 2 | Q163: 1 | R163: 2 | S163: 2 | T163: 2 | U163: 2 | V163: 2 | W163: 2 | X163: 22
A164: 163 | B164: F67959-3 | C164: 商品名 31859295 | D164: 廃番 | E164: 8500Q | F164: B50 | G164: 7200 | H164: 7056 | I164: 5184 | J164: 5080 | K164: V1000 | L164: 103 | M164: 8 | N164: 193 | O164: 45 | P164: 93 | Q164: 236 | R164: 137 | S164: 81 | T164: 190 | U164: 111 | V164: 91 | W164: 0 | X164: 1288
A165: 164 | B165: F71657-6 | C165: 商品名 19498250 | D165: 定番 | E165: 4900T | F165: B60 | G165: 300 | H165: 255 | I165: 231 | J165: 230 | K165: V0600 | L165: 5 | M165: 5 | N165: 5 | O165: 5 | P165: 4 | Q165: 5 | R165: 5 | S165: 5 | T165: 4 | U165: 5 | V165: 5 | W165: 4 | X165: 57
A166: 165 | B166: F80761-4 | C166: 商品名 34021542 | D166: 定番 | E166: 0200V | F166: A60 | G166: 700 | H166: 693 | I166: 476 | J166: 470 | K166: V0700 | L166: 93 | M166: 114 | N166: 76 | O166: 115 | P166: 142 | Q166: 34 | R166: 0 | S166: 115 | T166: 120 | U166: 22 | V166: 22 | W166: 81 | X166: 934
A167: 166 | B167: F82608-2 | C167: 商品名 94454238 | D167: 定番 | E167: 4500L | F167: B30 | G167: 500 | H167: 440 | I167: 330 | J167: 320 | K167: V1000 | L167: 109 | M167: 193 | N167: 0 | O167: 77 | P167: 461 | Q167: 23 | R167: 54 | S167: 224 | T167: 343 | U167: 266 | V167: 215 | W167: 3 | X167: 1968
A168: 167 | B168: F87861-4 | C168: 商品名 43288184 | D168: 廃番 | E168: 2800L | F168: A50 | G168: 400 | H168: 372 | I168: 288 | J168: 280 | K168: V0300 | L168: 69 | M168: 25 | N168: 109 | O168: 118 | P168: 59 | Q168: 52 | R168: 123 | S168: 50 | T168: 108 | U168: 156 | V168: 149 | W168: 100 | X168: 1118
A169: 168 | B169: F88809-5 | C169: 商品名 61825564 | D169: 特注 | E169: 8200P | F169: A20 | G169: 400 | H169: 360 | I169: 248 | J169: 240 | K169: V1400 | L169: 45 | M169: 55 | N169: 41 | O169: 50 | P169: 46 | Q169: 59 | R169: 58 | S169: 50 | T169: 47 | U169: 43 | V169: 51 | W169: 40 | X169: 585
A170: 169 | B170: F91340-3 | C170: 商品名 12741878 | D170: 定番 | E170: 7400F | F170: A10 | G170: 5800 | H170: 5510 | I170: 4060 | J170: 3980 | K170: V0600 | L170: 0 | M170: 57 | N170: 58 | O170: 36 | P170: 76 | Q170: 61 | R170: 71 | S170: 1 | T170: 0 | U170: 52 | V170: 4 | W170: 95 | X170: 511
A171: 170 | B171: F96278-4 | C171: 商品名 79548080 | D171: 定番 | E171: 5400S | F171: A20 | G171: 6500 | H171: 6500 | I171: 4030 | J171: 3950 | K171: V0200 | L171: 316 | M171: 219 | N171: 113 | O171: 164 | P171: 110 | Q171: 260 | R171: 300 | S171: 0 | T171: 59 | U171: 331 | V171: 263 | W171: 165 | X171: 2300
A172: 171 | B172: F97860-3 | C172: 商品名 58081263 | D172: 特注 | E172: 0800V | F172: A30 | G172: 4600 | H172: 4370 | I172: 2944 | J172: 2890 | K172: V0300 | L172: 34 | M172: 28 | N172: 36 | O172: 31 | P172: 30 | Q172: 34 | R172: 29 | S172: 26 | T172: 25 | U172: 29 | V172: 20 | W172: 32 | X172: 354
A173: 172 | B173: G03875-3 | C173: 商品名 03787395 | D173: 定番 | E173: 7800Q | F173: B40 | G173: 25700 | H173: 21845 | I173: 20560 | J173: 20150 | K173: V2800 | L173: 5 | M173: 4 | N173: 5 | O173: 5 | P173: 3 | Q173: 5 | R173: 5 | S173: 4 | T173: 5 | U173: 5 | V173: 5 | W173: 6 | X173: 57
A174: 173 | B174: G06993-2 | C174: 商品名 89365826 | D174: 廃番 | E174: 3600D | F174: B20 | G174: 100 | H174: 91 | I174: 74 | J174: 70 | K174: V0400 | L174: 13 | M174: 34 | N174: 28 | O174: 0 | P174: 31 | Q174: 63 | R174: 13 | S174: 25 | T174: 10 | U174: 21 | V174: 35 | W174: 10 | X174: 283
A175: 174 | B175: G15496-5 | C175: 商品名 81814845 | D175: 定番 | E175: 8100W | F175: B20 | G175: 1800 | H175: 1656 | I175: 1008 | J175: 990 | K175: V1600 | L175: 32 | M175: 36 | N175: 38 | O175: 35 | P175: 31 | Q175: 30 | R175: 29 | S175: 33 | T175: 32 | U175: 32 | V175: 36 | W175: 34 | X175: 398
A176: 175 | B176: G20903-1 | C176: 商品名 20577497 | D176: 定番 | E176: 5700U | F176: B50 | G176: 40900 | H176: 37628 | I176: 28221 | J176: 27660 | K176: V1000 | L176: 2 | M176: 9 | N176: 18 | O176: 18 | P176: 0 | Q176: 12 | R176: 14 | S176: 3 | T176: 12 | U176: 16 | V176: 0 | W176: 18 | X176: 122
A177: 176 | B177: G25037-4 | C177: 商品名 43182844 | D177: 特注 | E177: 1800V | F177: A40 | G177: 9500 | H177: 8360 | I177: 7980 | J177: 7820 | K177: V0200 | L177: 266 | M177: 197 | N177: 158 | O177: 113 | P177: 552 | Q177: 289 | R177: 0 | S177: 30 | T177: 194 | U177: 0 | V177: 46 | W177: 54 | X177: 1899
A178: 177 | B178: G25889-5 | C178: 商品名 56976711 | D178: 特注 | E178: 9700O | F178: B60 | G178: 10400 | H178: 10296 | I178: 8736 | J178: 8560 | K178: V1200 | L178: 1 | M178: 13 | N178: 6 | O178: 13 | P178: 19 | Q178: 9 | R178: 0 | S178: 3 | T178: 3 | U178: 0 | V178: 0 | W178: 5 | X178: 72
A179: 178 | B179: G26616-8 | C179: 商品名 75611066 | D179: 定番 | E179: 6100Z | F179: A10 | G179: 8800 | H179: 7832 | I179: 6072 | J179: 5950 | K179: V2000 | L179: 156 | M179: 183 | N179: 149 | O179: 154 | P179: 126 | Q179: 164 | R179: 190 | S179: 193 | T179: 137 | U179: 141 | V179: 161 | W179: 127 | X179: 1881
A180: 179 | B180: G27057-2 | C180: 商品名 86047375 | D180: 定番 | E180: 0400M | F180: B20 | G180: 4100 | H180: 3485 | I180: 2829 | J180: 2770 | K180: V2000 | L180: 51 | M180: 31 | N180: 32 | O180: 7 | P180: 19 | Q180: 50 | R180: 9 | S180: 26 | T180: 36 | U180: 36 | V180: 54 | W180: 44 | X180: 395
A181: 180 | B181: G29034-1 | C181: 商品名 77732250 | D181: 定番 | E181: 7300V | F181: A10 | G181: 300 | H181: 294 | I181: 174 | J181: 170 | K181: V1600 | L181: 361 | M181: 404 | N181: 456 | O181: 439 | P181: 478 | Q181: 484 | R181: 422 | S181: 378 | T181: 484 | U181: 391 | V181: 429 | W181: 410 | X181: 5136
A182: 181 | B182: G33423-7 | C182: 商品名 80150091 | D182: 特注 | E182: 1500Y | F182: B60 | G182: 300 | H182: 261 | I182: 171 | J182: 170 | K182: V1700 | L182: 590 | M182: 534 | N182: 493 | O182: 568 | P182: 617 | Q182: 654 | R182: 564 | S182: 490 | T182: 622 | U182: 628 | V182: 533 | W182: 433 | X182: 6726
A183: 182 | B183: G34989-7 | C183: 商品名 73705644 | D183: 定番 | E183: 7000Q | F183: A50 | G183: 3700 | H183: 3515 | I183: 2775 | J183: 2720 | K183: V1000 | L183: 43 | M183: 140 | N183: 116 | O183: 113 | P183: 140 | Q183: 2 | R183: 182 | S183: 161 | T183: 0 | U183: 0 | V183: 16 | W183: 81 | X183: 994
A184: 183 | B184: G35415-0 | C184: 商品名 70915890 | D184: 定番 | E184: 9100M | F184: A60 | G184: 27400 | H184: 26304 | I184: 17262 | J184: 16920 | K184: V0400 | L184: 11 | M184: 35 | N184: 0 | O184: 49 | P184: 20 | Q184: 43 | R184: 123 | S184: 17 | T184: 0 | U184: 0 | V184: 61 | W184: 54 | X184: 413
A185: 184 | B185: G38242-8 | C185: 商品名 09604172 | D185: 廃番 | E185: 6000E | F185: B40 | G185: 9400 | H185: 8648 | I185: 5170 | J185: 5070 | K185: V2300 | L185: 93 | M185: 84 | N185: 99 | O185: 94 | P185: 81 | Q185: 84 | R185: 69 | S185: 111 | T185: 98 | U185: 103 | V185: 99 | W185: 80 | X185: 1095
A186: 185 | B186: G39374-8 | C186: 商品名 81656602 | D186: 廃番 | E186: 6500D | F186: B30 | G186: 5500 | H186: 5390 | I186: 3135 | J186: 3070 | K186: V2200 | L186: 45 | M186: 31 | N186: 27 | O186: 45 | P186: 8 | Q186: 47 | R186: 35 | S186: 0 | T186: 7 | U186: 71 | V186: 29 | W186: 0 | X186: 345
A187: 186 | B187: G40354-3 | C187: 商品名 03736313 | D187: 定番 | E187: 7300O | F187: B60 | G187: 34600 | H187: 34600 | I187: 24912 | J187: 24410 | K187: V0500 | L187: 3 | M187: 0 | N187: 4 | O187: 3 | P187: 5 | Q187: 4 | R187: 4 | S187: 5 | T187: 8 | U187: 4 | V187: 2 | W187: 3 | X187: 45
A188: 187 | B188: G42982-0 | C188: 商品名 51545928 | D188: 定番 | E188: 5400W | F188: B20 | G188: 39500 | H188: 36735 | I188: 30810 | J188: 30190 | K188: V3000 | L188: 4 | M188: 4 | N188: 4 | O188: 4 | P188: 4 | Q188: 4 | R188: 4 | S188: 4 | T188: 4 | U188: 4 | V188: 4 | W188: 4 | X188: 48
A189: 188 | B189: G48952-1 | C189: 商品名 18079857 | D189: 特注 | E189: 0700V | F189: B20 | G189: 900 | H189: 774 | I189: 666 | J189: 650 | K189: V0700 | L189: 158 | M189: 37 | N189: 130 | O189: 44 | P189: 183 | Q189: 126 | R189: 71 | S189: 87 | T189: 68 | U189: 137 | V189: 49 | W189: 66 | X189: 1156
A190: 189 | B190: G52610-7 | C190: 商品名 66117215 | D190: 定番 | E190: 1100Y | F190: A30 | G190: 5000 | H190: 4950 | I190: 3500 | J190: 3430 | K190: V2600 | L190: 465 | M190: 377 | N190: 1085 | O190: 601 | P190: 0 | Q190: 195 | R190: 248 | S190: 939 | T190: 0 | U190: 626 | V190: 277 | W190: 1072 | X190: 5885
A191: 190 | B191: G52935-0 | C191: 商品名 82722419 | D191: 定番 | E191: 7200L | F191: A20 | G191: 500 | H191: 460 | I191: 300 | J191: 290 | K191: V0000 | L191: 112 | M191: 121 | N191: 83 | O191: 100 | P191: 93 | Q191: 84 | R191: 101 | S191: 129 | T191: 79 | U191: 63 | V191: 84 | W191: 76 | X191: 1125
A192: 191 | B192: G53424-6 | C192: 商品名 06633735 | D192: 定番 | E192: 6300J | F192: A50 | G192: 300 | H192: 261 | I192: 246 | J192: 240 | K192: V2400 | L192: 115 | M192: 152 | N192: 161 | O192: 146 | P192: 29 | Q192: 131 | R192: 163 | S192: 125 | T192: 84 | U192: 45 | V192: 124 | W192: 168 | X192: 1443
A193: 192 | B193: G54398-4 | C193: 商品名 71470732 | D193: 定番 | E193: 4700I | F193: A50 | G193: 9100 | H193: 9009 | I193: 7462 | J193: 7310 | K193: V0900 | L193: 253 | M193: 249 | N193: 259 | O193: 261 | P193: 260 | Q193: 256 | R193: 250 | S193: 252 | T193: 266 | U193: 263 | V193: 259 | W193: 251 | X193: 3079
A194: 193 | B194: G57222-5 | C194: 商品名 93896162 | D194: 定番 | E194: 8900L | F194: A30 | G194: 33300 | H194: 32634 | I194: 23976 | J194: 23500 | K194: V0200 | L194: 2 | M194: 0 | N194: 10 | O194: 5 | P194: 9 | Q194: 10 | R194: 4 | S194: 8 | T194: 5 | U194: 4 | V194: 0 | W194: 13 | X194: =SUM(L194:W194) -> 70
A195: 194 | B195: G59289-3 | C195: 商品名 37845605 | D195: 定番 | E195: 8400R | F195: B20 | G195: 30500 | H195: 26230 | I195: 18605 | J195: 18230 | K195: V1400 | L195: 2 | M195: 1 | N195: 3 | O195: 2 | P195: 2 | Q195: 2 | R195: 2 | S195: 0 | T195: 2 | U195: 3 | V195: 2 | W195: 2 | X195: 23
A196: 195 | B196: G67179-3 | C196: 商品名 20022659 | D196: 定番 | E196: 0200O | F196: B60 | G196: 6100 | H196: 5490 | I196: 4148 | J196: 4070 | K196: V0600 | L196: 51 | M196: 100 | N196: 132 | O196: 48 | P196: 119 | Q196: 131 | R196: 75 | S196: 91 | T196: 92 | U196: 148 | V196: 109 | W196: 146 | X196: 1242
A197: 196 | B197: G67409-0 | C197: 商品名 13912167 | D197: 定番 | E197: 9100R | F197: B10 | G197: 6900 | H197: 6831 | I197: 5244 | J197: 5140 | K197: V0600 | L197: 126 | M197: 895 | N197: 1160 | O197: 530 | P197: 1290 | Q197: 146 | R197: 1044 | S197: 1122 | T197: 272 | U197: 66 | V197: 656 | W197: 1106 | X197: 8413
A198: 197 | B198: G71153-3 | C198: 商品名 23413979 | D198: 定番 | E198: 4100Y | F198: B30 | G198: 20400 | H198: 17544 | I198: 15300 | J198: 14990 | K198: V0900 | L198: 3 | M198: 3 | N198: 2 | O198: 1 | P198: 3 | Q198: 3 | R198: 2 | S198: 2 | T198: 3 | U198: 2 | V198: 2 | W198: 3 | X198: 29
A199: 198 | B199: G72058-8 | C199: 商品名 68686274 | D199: 定番 | E199: 6800R | F199: B20 | G199: 5800 | H199: 5278 | I199: 4234 | J199: 4150 | K199: V0100 | L199: 74 | M199: 113 | N199: 73 | O199: 110 | P199: 89 | Q199: 107 | R199: 105 | S199: 111 | T199: 107 | U199: 93 | V199: 115 | W199: 91 | X199: 1188
A200: 199 | B200: G72790-4 | C200: 商品名 82764279 | D200: 特注 | E200: 7600Q | F200: B60 | G200: 100 | H200: 85 | I200: 72 | J200: 70 | K200: V2900 | L200: 74 | M200: 348 | N200: 257 | O200: 171 | P200: 364 | Q200: 197 | R200: 193 | S200: 139 | T200: 176 | U200: 175 | V200: 318 | W200: 276 | X200: 2688
... 532 more rows
